[Event "IV Elllobregat Open Chess Tmnt"]
[Site "Sant Boi de Llobregat, Spain"]
[Date "2023.12.02"]
[Round "3.31"]
[White "Kairbekova, Amina"]
[Black "Zwirs, Nico"]
[Result "0-1"]
[TimeControl "90min/40moves + 15min/end + 30sec from move 1"]
[WhiteFideId "13712799"]
[BlackFideId "1036432"]
[WhiteElo "2228"]
[BlackElo "2458"]

1. e4 {[%emt 00:00:03]} c5 {[%emt 00:00:01]} 2. Nf3 {[%emt 00:00:18]} d6 {[%emt
00:00:02]} 3. d4 {[%emt 00:00:07]} cxd4 {[%emt 00:00:05]} 4. Nxd4 {[%emt
00:00:05]} Nf6 {[%emt 00:00:04]} 5. Nc3 {[%emt 00:00:05]} a6 {[%emt 00:00:03]}
6. Be2 {[%emt 00:00:13]} e5 {[%emt 00:00:37]} 7. Nb3 {[%emt 00:00:07]} Be7
{[%emt 00:00:10]} 8. Be3 {[%emt 00:00:07]} Be6 {[%emt 00:00:54]} 9. Nd5 {[%emt
00:00:08]} Nbd7 {[%emt 00:00:31]} 10. Qd3 {[%emt 00:00:07]} Bxd5 {[%emt
00:01:50]} 11. exd5 {[%emt 00:00:08]} Rc8 {[%emt 00:01:37]} 12. O-O-O {[%emt
00:01:16]} Nb6 {[%emt 00:04:55]} 13. Kb1 {[%emt 00:00:16]} O-O {[%emt
00:02:26]} 14. Bf3 {[%emt 00:01:19]} Nc4 {[%emt 00:01:37]} 15. Bc1 {[%emt
00:02:20]} h6 {[%emt 00:01:48]} 16. g4 {[%emt 00:08:45]} Re8 {[%emt 00:02:51]}
17. Be4 {[%emt 00:25:58]} Nxe4 {[%emt 00:10:15]} 18. Qxe4 {[%emt 00:00:05]} Bh4
{[%emt 00:01:06]} 19. Nd2 {[%emt 00:16:33]} Nxd2+ {[%emt 00:02:11]} 20. Bxd2
{[%emt 00:00:14]} b5 {[%emt 00:06:33]} 21. Qf3 {[%emt 00:06:24]} e4 {[%emt
00:11:21]} 22. Qe2 {[%emt 00:00:22]} Qf6 {[%emt 00:06:40]} 23. Be3 {[%emt
00:00:13]} Rc4 {[%emt 00:02:11]} 24. c3 {[%emt 00:02:31]} Rec8 {[%emt
00:07:11]} 25. Rd4 {[%emt 00:11:58]} Rxd4 {[%emt 00:07:35]} 26. Bxd4 {[%emt
00:02:46]} Qg6 {[%emt 00:00:07]} 27. Ka1 {[%emt 00:00:22]} Re8 {[%emt
00:01:42]} 28. Qd1 {[%emt 00:08:49]} Qg5 {[%emt 00:09:33]} 29. Be3 {[%emt
00:00:12]} Qe5 {[%emt 00:00:36]} 30. Qd4 {[%emt 00:01:23]} Bg5 {[%emt
00:01:11]} 31. Qxe5 {[%emt 00:05:13]} Rxe5 {[%emt 00:00:22]} 32. Bd4 {[%emt
00:00:16]} Rxd5 {[%emt 00:04:24]} 33. Re1 {[%emt 00:00:06]} Bh4 {[%emt
00:04:03]} 34. a4 {[%emt 00:04:05]} f5 {[%emt 00:01:54]} 35. a5 {[%emt
00:02:24]} b4 {[%emt 00:04:21]} 36. gxf5 {[%emt 00:00:50]} Rxa5+ {[%emt
00:00:05]} 37. Kb1 {[%emt 00:00:03]} bxc3 {[%emt 00:04:35]} 38. Rxe4 {[%emt
00:00:42]} Bf6 {[%emt 00:00:08]} 39. Bxf6 {[%emt 00:01:39]} gxf6 {[%emt
00:00:08]} 40. bxc3 {[%emt 00:00:08]} Rxf5 {[%emt 00:00:08]} 41. f4 {[%emt
00:00:47]} Kf7 {[%emt 00:00:49]} 42. Kc2 {[%emt 00:00:19]} Rh5 {[%emt
00:01:30]} 43. Re2 {[%emt 00:00:06]} Kg6 {[%emt 00:08:25]} 44. Rd2 {[%emt
00:01:03]} d5 {[%emt 00:01:38]} 45. Kb3 {[%emt 00:00:33]} Rf5 {[%emt 00:01:58]}
46. Rd4 {[%emt 00:00:09]} Kf7 {[%emt 00:00:13]} 47. Kb4 {[%emt 00:02:12]} Ke6
{[%emt 00:00:01]} 48. Kc5 {[%emt 00:00:39]} Rh5 {[%emt 00:00:20]} 49. h4 {[%emt
00:01:45]} Rf5 {[%emt 00:03:50]} 50. Kc6 {[%emt 00:01:08]} Rh5 {[%emt
00:00:04]} 51. Kc5 {[%emt 00:00:10]} a5 {[%emt 00:00:33]} 52. Kc6 {[%emt
00:00:53]} Ke7 {[%emt 00:01:04]} 53. Kc7 {[%emt 00:01:21]} Rxh4 {[%emt
00:00:28]} 54. Rxd5 {[%emt 00:04:09]} Rxf4 {[%emt 00:00:09]} 55. Rd7 {[%emt
00:00:09]} Ke6 {[%emt 00:00:12]} 56. Rd6+ {[%emt 00:00:05]} Ke5 {[%emt
00:00:46]} 57. Rc6 {[%emt 00:00:14]} a4 {[%emt 00:00:50]} 58. Kd7 {[%emt
00:00:16]} Rf3 {[%emt 00:02:44]} 59. Rc5+ {[%emt 00:01:53]} Ke4 {[%emt
00:00:20]} 60. Ke6 {[%emt 00:00:09]} Kd3 {[%emt 00:00:15]} 61. Ra5 {[%emt
00:01:46]} Rf4 {[%emt 00:00:04]} 0-1

[Event "IV Elllobregat Open Chess Tmnt"]
[Site "Sant Boi de Llobregat, Spain"]
[Date "2023.12.02"]
[Round "3.32"]
[White "Van Der Hagen, Loek"]
[Black "Escobar Forero, Alder"]
[Result "1/2-1/2"]
[TimeControl "90min/40moves + 15min/end + 30sec from move 1"]
[WhiteFideId "1052853"]
[BlackFideId "4400801"]
[WhiteElo "2200"]
[BlackElo "2450"]

1. e4 {[%emt 00:00:02]} c5 {[%emt 00:03:13]} 2. Nf3 {[%emt 00:00:07]} a6 {[%emt
00:00:57]} 3. c4 {[%emt 00:01:29]} Nc6 {[%emt 00:00:22]} 4. d4 {[%emt
00:01:08]} cxd4 {[%emt 00:00:07]} 5. Nxd4 {[%emt 00:00:05]} e5 {[%emt
00:00:07]} 6. Nf5 {[%emt 00:03:13]} d5 {[%emt 00:03:24]} 7. Qxd5 {[%emt
00:09:52]} Bxf5 {[%emt 00:09:44]} 8. exf5 {[%emt 00:13:33]} Qxd5 {[%emt
00:20:43]} 9. cxd5 {[%emt 00:00:02]} Nb4 10. Na3 {[%emt 00:06:14]} Ne7 {[%emt
00:00:06]} 11. g4 {[%emt 00:09:39]} h5 {[%emt 00:02:03]} 12. Bd2 {[%emt
00:00:51]} Nexd5 {[%emt 00:00:34]} 13. g5 {[%emt 00:01:13]} Bc5 {[%emt
00:08:32]} 14. O-O-O {[%emt 00:14:32]} Nxa2+ {[%emt 00:10:55]} 15. Kb1 {[%emt
00:00:48]} Nab4 {[%emt 00:11:22]} 16. Nc4 {[%emt 00:03:24]} f6 {[%emt
00:07:20]} 17. Bxb4 {[%emt 00:23:06]} Nxb4 {[%emt 00:00:06]} 18. gxf6 {[%emt
00:00:24]} gxf6 {[%emt 00:00:02]} 19. Nd6+ {[%emt 00:02:33]} Ke7 {[%emt
00:14:42]} 20. Nxb7 {[%emt 00:00:08]} Bd4 {[%emt 00:00:44]} 21. Rg1 {[%emt
00:01:36]} Rac8 {[%emt 00:03:46]} 22. Rg7+ {[%emt 00:04:22]} Kf8 {[%emt
00:00:01]} 23. Rg3 {[%emt 00:00:14]} Rb8 {[%emt 00:00:58]} 24. Na5 {[%emt
00:01:15]} Rg8 {[%emt 00:00:54]} 25. Rxg8+ {[%emt 00:00:51]} Kxg8 {[%emt
00:00:01]} 26. Bc4+ {[%emt 00:00:07]} Kh7 {[%emt 00:00:28]} 27. f4 {[%emt
00:00:21]} Bb6 {[%emt 00:00:38]} 28. Rd7+ {[%emt 00:01:09]} Kh6 {[%emt
00:00:20]} 29. Nb7 {[%emt 00:01:21]} exf4 {[%emt 00:00:21]} 30. h4 {[%emt
00:00:12]} Nc6 {[%emt 00:00:40]} 31. Rd6 {[%emt 00:01:05]} Rxb7 {[%emt
00:02:07]} 32. Rxf6+ {[%emt 00:00:05]} Kh7 {[%emt 00:00:08]} 33. Rxc6 {[%emt
00:00:06]} Bd4 {[%emt 00:00:08]} 34. b3 {[%emt 00:00:26]} f3 {[%emt 00:00:18]}
35. Rxa6 {[%emt 00:01:14]} f2 {[%emt 00:00:17]} 36. Ka2 {[%emt 00:00:44]} Rc7
{[%emt 00:00:10]} 37. Bd3 {[%emt 00:00:40]} Rc3 {[%emt 00:00:47]} 38. Bb5
{[%emt 00:00:43]} Rc1 {[%emt 00:00:19]} 39. b4 {[%emt 00:00:36]} f1=Q {[%emt
00:00:05]} 40. Bxf1 {[%emt 00:00:10]} Rxf1 {[%emt 00:00:02]} 41. Rd6 {[%emt
00:00:46]} Bf2 {[%emt 00:03:47]} 42. Rd7+ {[%emt 00:00:39]} Kh6 {[%emt
00:00:13]} 43. Rd6+ {[%emt 00:00:12]} Kg7 {[%emt 00:01:33]} 44. Rg6+ {[%emt
00:01:06]} Kf7 {[%emt 00:00:20]} 45. Rg5 {[%emt 00:00:35]} Bxh4 {[%emt
00:00:02]} 46. Rxh5 {[%emt 00:00:07]} Be7 {[%emt 00:00:06]} 47. Rh7+ {[%emt
00:01:20]} Kf6 {[%emt 00:00:17]} 48. Rh6+ {[%emt 00:00:19]} Kxf5 {[%emt
00:00:16]} 49. b5 {[%emt 00:00:48]} Rf4 {[%emt 00:01:25]} 50. Rh7 {[%emt
00:00:27]} Ke6 {[%emt 00:00:13]} 51. Rh3 {[%emt 00:00:51]} Kd5 {[%emt
00:00:29]} 52. b6 {[%emt 00:00:25]} Kc6 {[%emt 00:00:26]} 53. b7 {[%emt
00:00:26]} Kxb7 {[%emt 00:00:11]} 54. Rh7 {[%emt 00:00:10]} Re4 {[%emt
00:00:07]} 55. Kb3 {[%emt 00:00:15]} Kc6 {[%emt 00:00:03]} 56. Kc3 {[%emt
00:00:20]} Bd6 {[%emt 00:00:22]} 57. Rh5 {[%emt 00:00:17]} Be5+ {[%emt
00:00:10]} 58. Kd3 {[%emt 00:00:39]} Kd5 {[%emt 00:00:02]} 59. Rh7 {[%emt
00:00:34]} Rg4 {[%emt 00:00:07]} 60. Rh3 {[%emt 00:00:30]} Ra4 {[%emt
00:00:14]} 61. Kd2 {[%emt 00:00:57]} Ra2+ {[%emt 00:00:15]} 62. Kd1 {[%emt
00:00:42]} Ke4 {[%emt 00:00:26]} 63. Ke1 {[%emt 00:01:36]} Bf4 {[%emt
00:00:29]} 64. Kf1 {[%emt 00:01:34]} Be3 {[%emt 00:00:21]} 65. Rh7 {[%emt
00:00:52]} Rb2 {[%emt 00:03:38]} 66. Rh8 {[%emt 00:00:43]} Kd3 {[%emt
00:00:41]} 67. Rd8+ {[%emt 00:00:49]} Bd4 {[%emt 00:00:34]} 68. Rf8 {[%emt
00:01:30]} Rb1+ {[%emt 00:05:57]} 69. Kg2 {[%emt 00:00:02]} Rg1+ {[%emt
00:00:04]} 70. Kh3 {[%emt 00:00:36]} Ke4 {[%emt 00:00:22]} 71. Ra8 {[%emt
00:01:48]} Be5 {[%emt 00:00:20]} 72. Ra4+ {[%emt 00:00:41]} Kf5 {[%emt
00:00:46]} 73. Ra3 {[%emt 00:00:21]} Rg6 {[%emt 00:00:34]} 74. Rb3 {[%emt
00:02:08]} Bf4 {[%emt 00:00:31]} 75. Rf3 {[%emt 00:03:38]} Ke4 {[%emt
00:00:53]} 76. Rf2 {[%emt 00:00:59]} Rg3+ {[%emt 00:01:19]} 77. Kh2 {[%emt
00:00:14]} Ke3 {[%emt 00:01:03]} 78. Rg2 {[%emt 00:00:04]} Rg5+ {[%emt
00:01:11]} 79. Kg1 {[%emt 00:00:20]} Rh5 {[%emt 00:00:39]} 80. Ra2 {[%emt
00:00:35]} Kf3 {[%emt 00:00:26]} 81. Rf2+ {[%emt 00:00:01]} Ke4 {[%emt
00:00:09]} 82. Kg2 {[%emt 00:01:29]} Rg5+ {[%emt 00:00:11]} 83. Kh3 {[%emt
00:00:54]} Kf5 {[%emt 00:00:18]} 84. Rf3 {[%emt 00:00:19]} Rg6 {[%emt
00:01:09]} 85. Rf2 {[%emt 00:01:02]} Rg1 {[%emt 00:01:16]} 86. Rf3 {[%emt
00:00:49]} Rh1+ {[%emt 00:00:22]} 87. Kg2 {[%emt 00:00:01]} Rh6 {[%emt
00:00:02]} 88. Ra3 {[%emt 00:00:52]} Rh2+ {[%emt 00:00:02]} 89. Kf1 {[%emt
00:00:09]} Rc2 {[%emt 00:00:03]} 90. Rb3 {[%emt 00:01:11]} Ke4 {[%emt
00:00:11]} 91. Rh3 {[%emt 00:00:16]} Be3 {[%emt 00:00:02]} 92. Rh4+ {[%emt
00:00:14]} Kd3 {[%emt 00:00:08]} 93. Rh3 {[%emt 00:00:30]} Rf2+ {[%emt
00:01:21]} 94. Kg1 {[%emt 00:00:03]} Ke4 {[%emt 00:00:05]} 95. Rg3 {[%emt
00:00:57]} Rf5+ {[%emt 00:00:43]} 96. Kg2 {[%emt 00:00:20]} Rg5 {[%emt
00:00:05]} 1/2-1/2

[Event "IV Elllobregat Open Chess Tmnt"]
[Site "Sant Boi de Llobregat, Spain"]
[Date "2023.12.02"]
[Round "3.33"]
[White "Banos, Oscar"]
[Black "Haldorsen, Benjamin"]
[Result "1/2-1/2"]
[TimeControl "90min/40moves + 15min/end + 30sec from move 1"]
[WhiteFideId "107174"]
[BlackFideId "1512633"]
[WhiteElo "2188"]
[BlackElo "2445"]

1. Nf3 {[%clk 01:30:57]} Nf6 {[%clk 01:30:01]} {[%emt 00:00:59]} 2. c4 {[%clk
01:30:59]} {[%emt 00:00:28]} b6 {[%clk 01:30:12]} {[%emt 00:00:20]} 3. e3
{[%clk 01:28:56]} {[%emt 00:02:32]} Bb7 {[%clk 01:29:30]} {[%emt 00:01:13]} 4.
d4 {[%clk 01:26:58]} {[%emt 00:02:28]} g6 {[%clk 01:29:08]} {[%emt 00:00:53]} 5.
Be2 {[%clk 01:25:28]} {[%emt 00:01:59]} Bg7 {[%clk 01:28:27]} {[%emt 00:01:11]}
6. O-O {[%clk 01:25:26]} {[%emt 00:00:31]} O-O {[%clk 01:27:41]} {[%emt
00:01:17]} 7. b4 {[%emt 00:18:50]} e6 {[%clk 01:14:35]} {[%emt 00:01:21]} 8.
Nbd2 {[%clk 01:10:57]} {[%emt 00:08:53]} d6 {[%clk 01:11:10]} {[%emt 00:03:55]}
9. Bb2 {[%clk 01:06:28]} {[%emt 00:04:59]} Nbd7 {[%emt 00:02:51]} 10. a4 {[%clk
01:02:27]} {[%emt 00:02:47]} c5 {[%clk 01:06:28]} {[%emt 00:04:36]} 11. Qb3
{[%clk 00:54:42]} {[%emt 00:08:14]} Rb8 {[%clk 00:58:43]} {[%emt 00:08:15]} 12.
Bc3 {[%emt 00:18:01]} e5 {[%clk 00:43:43]} {[%emt 00:05:28]} 13. Qb2 {[%clk
00:34:52]} {[%emt 00:12:51]} a5 {[%clk 00:27:39]} {[%emt 00:16:34]} 14. bxa5
{[%clk 00:30:45]} {[%emt 00:04:37]} bxa5 {[%clk 00:27:08]} {[%emt 00:01:02]} 15.
Qa3 {[%clk 00:29:07]} {[%emt 00:02:07]} exd4 {[%clk 00:24:46]} {[%emt
00:02:52]} 16. exd4 {[%clk 00:29:22]} {[%emt 00:00:15]} Re8 {[%clk 00:24:35]}
{[%emt 00:00:41]} 17. Rfe1 {[%clk 00:28:49]} {[%emt 00:01:03]} Ne4 {[%clk
00:24:27]} {[%emt 00:00:39]} 18. Nxe4 {[%clk 00:27:42]} {[%emt 00:01:36]} Bxe4
{[%clk 00:24:55]} {[%emt 00:00:01]} 19. dxc5 {[%emt 00:03:16]} Nxc5 {[%clk
00:23:05]} {[%emt 00:00:17]} 20. Bxg7 {[%clk 00:26:28]} {[%emt 00:01:01]} Bxf3
{[%emt 00:09:25]} 21. Qxf3 {[%clk 00:21:49]} {[%emt 00:01:49]} Kxg7 {[%clk
00:17:45]} {[%emt 00:00:15]} 22. Qc3+ {[%clk 00:20:00]} {[%emt 00:02:19]} Qf6
{[%clk 00:17:45]} {[%emt 00:00:30]} 23. Qxf6+ {[%clk 00:19:21]} {[%emt
00:01:09]} Kxf6 {[%clk 00:18:09]} {[%emt 00:00:06]} 24. Kf1 {[%clk 00:18:06]}
{[%emt 00:01:45]} Rb4 {[%clk 00:15:09]} {[%emt 00:03:30]} 25. Red1 {[%clk
00:17:31]} {[%emt 00:01:04]} Ke7 {[%clk 00:15:05]} {[%emt 00:00:34]} 26. Bf3
{[%clk 00:13:56]} {[%emt 00:04:05]} Kd7 {[%clk 00:11:13]} {[%emt 00:04:23]} 27.
Bd5 {[%clk 00:11:39]} {[%emt 00:02:47]} f6 {[%clk 00:10:49]} {[%emt 00:00:54]}
28. Ra3 {[%clk 00:10:24]} {[%emt 00:01:45]} Re7 {[%clk 00:04:51]} {[%emt
00:06:28]} 29. Ra2 {[%clk 00:10:18]} {[%emt 00:00:36]} Kc7 {[%clk 00:04:28]}
{[%emt 00:00:53]} 30. g3 {[%clk 00:08:52]} {[%emt 00:01:57]} f5 {[%clk
00:03:00]} {[%emt 00:01:57]} 31. h4 {[%clk 00:08:49]} {[%emt 00:00:32]} Nd7
{[%clk 00:01:55]} {[%emt 00:01:35]} 32. Rad2 {[%clk 00:07:29]} {[%emt
00:01:50]} Rxa4 {[%clk 00:01:26]} {[%emt 00:01:00]} 33. Rb1 {[%clk 00:06:03]}
{[%emt 00:01:55]} Nc5 {[%clk 00:01:07]} {[%emt 00:00:49]} 34. Rdb2 {[%clk
00:06:11]} {[%emt 00:00:22]} Rb4 {[%clk 00:00:34]} {[%emt 00:01:03]} 35. Rxb4
{[%clk 00:05:56]} {[%emt 00:00:45]} axb4 {[%clk 00:01:03]} {[%emt 00:00:01]} 36.
Rxb4 {[%clk 00:06:21]} {[%emt 00:00:05]} h6 {[%clk 00:01:21]} {[%emt 00:00:12]}
37. Rb1 {[%clk 00:06:17]} {[%emt 00:00:33]} g5 {[%clk 00:01:40]} {[%emt
00:00:11]} 38. Ra1 {[%clk 00:04:02]} {[%emt 00:02:45]} gxh4 {[%clk 00:00:52]}
{[%emt 00:01:18]} 39. Ra7+ {[%clk 00:03:45]} {[%emt 00:00:47]} 1/2-1/2

[Event "IV Elllobregat Open Chess Tmnt"]
[Site "Sant Boi de Llobregat, Spain"]
[Date "2023.12.02"]
[Round "3.34"]
[White "Shirov, Alexei"]
[Black "Wong, Zhenyong Jayden"]
[Result "1-0"]
[TimeControl "90min/40moves + 15min/end + 30sec from move 1"]
[WhiteFideId "2209390"]
[BlackFideId "5821975"]
[WhiteElo "2668"]
[BlackElo "2356"]

1. e4 c5 2. Nf3 e6 3. d4 cxd4 4. Nxd4 Nc6 5. Nc3 Qc7 6. Be3 a6 7. Qf3 Nf6 8.
O-O-O Ne5 9. Qg3 b5 10. f4 Neg4 11. Bg1 h5 12. e5 b4 13. Na4 Nd5 14. h3 Nh6 15.
f5 Bb7 16. Bd3 Be7 17. Kb1 h4 18. Qe1 Nf4 19. Be4 Nxg2 20. Bxg2 Bxg2 21. Rh2
Bd5 22. Rhd2 Rc8 23. Ka1 Bg5 24. Be3 Bxe3 25. Qxe3 {[%clk 01:17:55]} exf5
{[%clk 01:30:44]} 26. Qg5 {[%emt 49:25:36]} g6 27. Qf6 O-O 28. Nb6 Be4 29. e6
dxe6 30. Nxe6 fxe6 31. Qxg6+ Qg7 32. Qxe6+ {[%clk 01:01:03]} 1-0

[Event "IV Elllobregat Open Chess Tmnt"]
[Site "Sant Boi de Llobregat, Spain"]
[Date "2023.12.02"]
[Round "3.35"]
[White "Sanal, Vahap"]
[Black "Lacasa Diaz, Jose Antonio"]
[Result "1-0"]
[TimeControl "90min/40moves + 15min/end + 30sec from move 1"]
[WhiteFideId "6300545"]
[BlackFideId "2203375"]
[WhiteElo "2608"]
[BlackElo "2352"]

1. e4 {[%clk 01:30:56]} {[%emt 00:00:02]} c5 {[%clk 01:29:52]} {[%emt
00:01:08]} 2. Nf3 {[%clk 01:31:17]} {[%emt 00:00:08]} d6 {[%clk 01:30:09]}
{[%emt 00:00:14]} 3. d4 {[%clk 01:31:40]} {[%emt 00:00:07]} cxd4 {[%clk
01:30:28]} {[%emt 00:00:11]} 4. Nxd4 {[%clk 01:32:05]} {[%emt 00:00:06]} Nf6
{[%clk 01:30:51]} {[%emt 00:00:07]} 5. Nc3 {[%clk 01:32:28]} {[%emt 00:00:07]}
g6 {[%clk 01:30:24]} {[%emt 00:00:57]} 6. Be3 {[%clk 01:32:48]} {[%emt
00:00:09]} Bg7 {[%clk 01:30:48]} {[%emt 00:00:07]} 7. Be2 {[%clk 01:32:30]}
{[%emt 00:00:49]} Nc6 {[%clk 01:28:57]} {[%emt 00:02:22]} 8. Qd2 {[%clk
01:32:50]} {[%emt 00:00:09]} Ng4 {[%clk 01:27:49]} {[%emt 00:01:38]} 9. Bxg4
{[%clk 01:32:59]} {[%emt 00:00:22]} Bxg4 {[%clk 01:28:11]} {[%emt 00:00:08]} 10.
f3 {[%clk 01:33:22]} {[%emt 00:00:06]} Be6 {[%clk 01:28:21]} {[%emt 00:00:19]}
11. h4 {[%clk 01:26:33]} {[%emt 00:07:19]} Qa5 {[%clk 01:20:06]} {[%emt
00:08:46]} 12. h5 {[%clk 01:24:31]} {[%emt 00:02:32]} gxh5 {[%clk 01:07:58]}
{[%emt 00:12:39]} 13. Nce2 {[%clk 01:21:17]} {[%emt 00:03:42]} Qxd2+ {[%clk
01:05:56]} {[%emt 00:02:33]} 14. Kxd2 {[%clk 01:21:41]} {[%emt 00:00:05]} Nxd4
{[%clk 01:03:44]} {[%emt 00:02:43]} 15. Bxd4 {[%clk 01:18:45]} {[%emt
00:03:26]} Bxd4 {[%clk 00:47:50]} {[%emt 00:16:24]} 16. Nxd4 {[%clk 01:19:08]}
{[%emt 00:00:06]} Rg8 {[%clk 00:48:13]} {[%emt 00:00:07]} 17. Rag1 {[%clk
01:13:47]} {[%emt 00:05:50]} Rg5 {[%clk 00:47:46]} {[%emt 00:00:58]} 18. f4
{[%clk 01:14:02]} {[%emt 00:00:15]} Rg4 {[%clk 00:47:47]} {[%emt 00:00:29]} 19.
g3 {[%clk 01:12:41]} {[%emt 00:01:50]} O-O-O {[%clk 00:47:31]} {[%emt
00:00:45]} 20. Rxh5 {[%clk 01:12:36]} {[%emt 00:00:37]} Rdg8 {[%clk 00:39:16]}
{[%emt 00:08:45]} 21. Rxh7 {[%clk 01:12:04]} {[%emt 00:01:02]} Rxg3 {[%clk
00:32:52]} {[%emt 00:06:54]} 22. Rxg3 {[%clk 01:12:26]} {[%emt 00:00:08]} Rxg3
{[%clk 00:33:18]} {[%emt 00:00:05]} 23. b3 {[%clk 00:53:56]} {[%emt 00:19:01]}
Rh3 {[%clk 00:23:39]} {[%emt 00:10:09]} 24. Rg7 {[%clk 00:52:26]} {[%emt
00:01:59]} Bd7 {[%clk 00:23:38]} {[%emt 00:00:31]} 25. Rxf7 {[%clk 00:52:32]}
{[%emt 00:00:24]} e5 {[%clk 00:23:53]} {[%emt 00:00:14]} 26. fxe5 {[%clk
00:51:15]} {[%emt 00:01:48]} dxe5 {[%clk 00:24:18]} {[%emt 00:00:04]} 27. Nf5
{[%clk 00:50:35]} {[%emt 00:01:10]} Rh2+ {[%clk 00:20:23]} {[%emt 00:04:26]} 28.
Kc3 {[%clk 00:50:29]} {[%emt 00:00:35]} Rh3+ {[%clk 00:20:33]} {[%emt
00:00:20]} 29. Kb4 {[%clk 00:50:26]} {[%emt 00:00:33]} b6 {[%clk 00:19:00]}
{[%emt 00:02:04]} 30. Re7 {[%clk 00:46:20]} {[%emt 00:04:35]} a5+ {[%clk
00:12:16]} {[%emt 00:07:14]} 31. Ka3 {[%clk 00:40:23]} {[%emt 00:06:26]} Bxf5
{[%clk 00:06:22]} {[%emt 00:06:25]} 32. exf5 {[%clk 00:40:29]} {[%emt
00:00:24]} Rf3 {[%clk 00:06:46]} {[%emt 00:00:06]} 33. Rxe5 {[%clk 00:39:54]}
{[%emt 00:01:05]} Kc7 {[%clk 00:05:33]} {[%emt 00:01:44]} 34. Kb2 {[%clk
00:39:13]} {[%emt 00:01:10]} Kd6 {[%clk 00:04:51]} {[%emt 00:01:13]} 35. Rb5
{[%clk 00:38:44]} {[%emt 00:01:00]} Kc6 {[%clk 00:04:56]} {[%emt 00:00:25]} 36.
a4 {[%clk 00:39:01]} {[%emt 00:00:13]} Kc7 {[%clk 00:05:14]} {[%emt 00:00:12]}
37. Re5 {[%clk 00:39:05]} {[%emt 00:00:24]} Kd6 {[%clk 00:04:59]} {[%emt
00:00:47]} 38. Re6+ {[%clk 00:39:21]} {[%emt 00:00:14]} Kc5 {[%clk 00:05:04]}
{[%emt 00:00:26]} 39. f6 {[%clk 00:39:29]} {[%emt 00:00:21]} Rf5 {[%clk
00:05:11]} {[%emt 00:00:23]} 40. Kc3 {[%clk 00:54:52]} {[%emt 00:00:07]} b5
{[%clk 00:19:01]} {[%emt 00:01:41]} 41. axb5 {[%clk 00:55:14]} {[%emt
00:00:08]} Kxb5 {[%clk 00:19:27]} {[%emt 00:00:03]} 42. Kd4 {[%clk 00:55:37]}
{[%emt 00:00:06]} 1-0